Workbook

Sheet Лист1
C3: Подготовлено редакцией Правовой платформы «Бизнес-Инфо» (ООО «Профессиональные правовые системы»)
C5: Расчет стоимости товаров, реализуемых со скидкой по дисконтной карте и обоснование эффективности реализации товаров
C7: № п/п | D7: Показатель | H7: Ед. изм. | I7: Значение (в расчете на принятую единицу измерения)
I8: сухая молочная смесь для детей | K8: туфли детские
C9: 1.1 | D9: Розничная цена (с НДС), применяемая организацией при реализации товара на общих условиях, в том числе: | H9: руб. | I9: 33 | K9: 71.5
C10: 1.2 | D10: НДС в цене | H10: % | I10: 10 | K10: 10
C11: 1.3 | H11: руб. | I11: =ROUND(I9*I10/(100+I10),2) -> 3 | K11: =ROUND(K9*K10/(100+K10),2) -> 6.5
C12: 2.1 | D12: Скидка с розничной цены, предоставляемая покупателям | H12: % | I12: 6 | K12: 6
C13: 2.2 | H13: руб. | I13: =ROUND((I9*I12/100),2) -> 1.98 | K13: =ROUND((K9*K12/100),2) -> 4.29
C14: 3 | D14: Розничная цена на товар с учетом скидки (с НДС) | H14: руб. | I14: =I9-I13 -> 31.02 | K14: =K9-K13 -> 67.21
C15: 4.1 | D15: НДС в розничной цене со скидкой | H15: руб. | I15: =ROUND(I14*I10/(100+I10),2) -> 2.82 | K15: =ROUND(K14*K10/(100+K10),2) -> 6.11
C16: 4.2 | D16: НДС, приходящийся на сумму скидки | H16: руб. | I16: =ROUND(I13*I10/(100+I10),2) -> 0.18 | K16: =ROUND(K13*K10/(100+K10),2) -> 0.39
C17: 5 | D17: Розничная цена на товар со скидкой (без НДС) | H17: руб. | I17: =I14-I15 -> 28.2 | K17: =K14-K15 -> 61.1
C18: 6 | D18: Отпускная цена на товар, установленная импортером (производителем) согласно ТТН (без НДС) | H18: руб. | I18: 26.09 | K18: 50
C19: 7.1 | D19: Торговая надбавка, применяемая организацией при реализации товара со скидкой | H19: руб. | I19: =I17-I18 -> 2.11 | K19: =K17-K18 -> 11.1
C20: 7.2 | H20: % | I20: =ROUND(100*I19/I18,2) -> 8.09 | K20: =ROUND(100*K19/K18,2) -> 22.2
C21: 7.3 | D21: Торговая надбавка, применяемая организацией при реализации товара на общих условиях | H21: % | I21: 15 | K21: 30
C22: 7.4 | H22: руб. | I22: =ROUND((I9-I11)*I21/(100+I21),2) -> 3.91 | K22: =ROUND((K9-K11)*K21/(100+K21),2) -> 15
C23: 7.5 | D23: Торговая надбавка, приходящаяся на сумму скидки с установленной розничной цены | H23: руб. | I23: =I22-I19 -> 1.8 | K23: =K22-K19 -> 3.9
C24: 7.6 | H24: % | I24: =ROUND(100*I23/I18,2) -> 6.9 | K24: =ROUND(100*K23/K18,2) -> 7.8
C25: 8.1 | D25: Расходы на реализацию и управленческие расходы в торговой надбавке (без НДС) | H25: % | I25: 40 | K25: 40
C26: 8.2 | H26: руб. | I26: =ROUND(I19*I25/100,2) -> 0.84 | K26: =ROUND(K19*K25/100,2) -> 4.44
C27: 9.1 | D27: Прибыль (убыток) от реализации товара со скидкой | H27: руб. | I27: =I19-I26 -> 1.27 | K27: =K19-K26 -> 6.66
C28: 9.2 | D28: Рентабельность реализации товара со скидкой | H28: % | I28: =ROUND(100*I27/I14,2) -> 4.09 | K28: =ROUND(100*K27/K14,2) -> 9.91
